[Event "Turkish Women-ch Arzum 2022"]
[Site "Ayvalik"]
[Date "2022.03.09"]
[Round "7.1"]
[White "Isgenderova, Hayale"]
[Black "Atalik, Ekaterina"]
[Result "0-1"]
[ECO "C41"]
[WhiteElo "2202"]
[BlackElo "2415"]
[Annotator "ChessBase"]
[PlyCount "52"]
[EventDate "2022.03.04"]
[EventType "swiss"]
[EventCountry "TUR"]
[SourceTitle "playchess.com"]
[Source "ChessBase"]
[SourceQuality "1"]
[TimeControl "5400+30"]

1. e4 {[%emt 0:01:00]} e5 {[%emt 0:01:00]} 2. Nf3 {[%emt 0:00:30]} d6 {[%emt 0:00:30]} 3. d4 {[%emt 0:00:30]} exd4 {[%emt 0:00:00]} 4. Nxd4 {[%emt 0:04:30]} Nf6 {[%emt 0:01:00]} 5. Nc3 {[%emt 0:00:30]} g6 {[%emt 0:00:30]} 6. Be2 {[%emt 0:02:30]} Bg7 {[%emt 0:00:00]} 7. Be3 {[%emt 0:00:00]} O-O {[%emt 0:00:00]} 8. f4 {[%emt 0:10:00]} Re8 {[%emt 0:03:30]} 9. Bf3 {[%emt 0:00:00]} Nxe4 {[%emt 0:05:30]} 10. Nxe4 {[%emt 0:16:00]} d5 {[%emt 0:01:30]} 11. Nb5 {[%emt 0:04:30]} a6 {[%emt 0:13:30]} 12. Nxc7 {[%emt 0:03:30]} Qxc7 {[%emt 0:00:30]} 13. Qxd5 {[%emt 0:00:00]} Bf5 {[%emt 0:06:30]} 14. Qxb7 {[%emt 0:08:00]} Qxb7 {[%emt 0:00:30]} 15. Nf6+ {[%emt 0:00:30]} Bxf6 {[%emt 0:00:30]} 16. Bxb7 {[%emt 0:00:00]} Ra7 {[%emt 0:00:30]} 17. Bf3 {[%emt 0:04:00]} Rxe3+ {[%emt 0:01:30]} 18. Kf2 {[%emt 0:00:00]} Rae7 {[%emt 0:00:30]} 19. Rad1 {[%emt 0:00:00]} Nd7 {[%emt 0:01:30]} 20. c4 {[%emt 0:00:30]} Nc5 {[%emt 0:01:30]} 21. Rd6 {[%emt 0:01:30]} Bh4+ {[%emt 0:02:30]} 22. g3 {[%emt 0:00:30]} Nd3+ {[%emt 0:01:30]} 23. Kg2 {[%emt 0:01:30]} Ne1+ {[%emt 0:00:30]} 24. Rxe1 {[%emt 0:00:30]} Rxe1 {[%emt 0:00:30]} 25. gxh4 {[%emt 0:00:00]} Be4 {[%emt 0:01:30]} 26. Bxe4 {[%emt 0:03:00]} R7xe4 {[%emt 0:00:30]} 0-1

[Event "Turkish Women-ch Arzum 2022"]
[Site "Ayvalik"]
[Date "2022.03.09"]
[Round "7.2"]
[White "Ince, Safiye Oyku"]
[Black "Onur, Cigdem"]
[Result "1/2-1/2"]
[ECO "B45"]
[WhiteElo "1893"]
[BlackElo "2012"]
[Annotator "ChessBase"]
[PlyCount "110"]
[EventDate "2022.03.04"]
[EventType "swiss"]
[EventCountry "TUR"]
[SourceTitle "playchess.com"]
[Source "ChessBase"]
[SourceQuality "1"]
[TimeControl "5400+30"]

1. e4 {[%emt 0:05:00]} c5 {[%emt 0:03:00]} 2. Nf3 {[%emt 0:00:30]} Nc6 {[%emt 0:00:30]} 3. d4 {[%emt 0:00:30]} cxd4 {[%emt 0:00:30]} 4. Nxd4 {[%emt 0:00:30]} Nf6 {[%emt 0:00:00]} 5. Nc3 {[%emt 0:00:00]} e6 {[%emt 0:00:00]} 6. g3 {[%emt 0:00:00]} Bb4 {[%emt 0:00:30]} 7. Bg2 {[%emt 0:00:00]} O-O {[%emt 0:15:30]} 8. O-O {[%emt 0:00:00]} d6 {[%emt 0:20:30]} 9. Nb3 {[%emt 0:20:30]} Qe7 {[%emt 0:16:30]} 10. a4 {[%emt 0:16:30]} Rd8 {[%emt 0:04:30]} 11. Na2 {[%emt 0:05:30]} Bc5 {[%emt 0:08:30]} 12. Bg5 {[%emt 0:01:30]} h6 {[%emt 0:01:30]} 13. Bxf6 {[%emt 0:01:30]} Qxf6 {[%emt 0:00:30]} 14. Nc3 {[%emt 0:00:00]} Ne5 {[%emt 0:10:52]} 15. Qe2 {[%emt 0:03:00]} Bb4 {[%emt 0:05:33]} 16. Nd1 {[%emt 0:06:30]} Bc5 {[%emt 0:03:59]} 17. Nxc5 {[%emt 0:06:30]} dxc5 {[%emt 0:00:05]} 18. f4 {[%emt 0:00:00]} Nc6 {[%emt 0:01:07]} 19. c3 {[%emt 0:01:00]} e5 {[%emt 0:02:21]} 20. f5 {[%emt 0:00:30]} Ne7 {[%emt 0:01:21]} 21. Ne3 {[%emt 0:00:30]} Qa6 {[%emt 0:01:05]} 22. Qh5 {[%emt 0:06:30]} f6 {[%emt 0:00:30]} 23. Rfd1 {[%emt 0:00:30]} Bd7 {[%emt 0:01:08]} 24. Bf1 {[%emt 0:00:00]} Qc6 {[%emt 0:01:36]} 25. Bc4+ {[%emt 0:00:00]} Kh7 {[%emt 0:00:05]} 26. Ng4 {[%emt 0:01:30]} Be8 {[%emt 0:00:49]} 27. Bf7 {[%emt 0:00:30]} Bxf7 {[%emt 0:00:55]} 28. Qxf7 {[%emt 0:00:30]} Ng8 {[%emt 0:00:32]} 29. Rd5 {[%emt 0:01:30]} Rxd5 {[%emt 0:00:30]} 30. exd5 {[%emt 0:00:00]} Qb6 {[%emt 0:00:23]} 31. Rd1 {[%emt 0:02:00]} Rd8 {[%emt 0:00:18]} 32. Nf2 {[%emt 0:00:30]} Qxb2 {[%emt 0:00:39]} 33. d6 {[%emt 0:01:30]} Qb6 {[%emt 0:00:07]} 34. c4 {[%emt 0:00:30]} Qc6 {[%emt 0:00:14]} 35. d7 {[%emt 0:00:30]} h5 {[%emt 0:00:53]} 36. Qg6+ {[%emt 0:02:30]} Kh8 {[%emt 0:00:30]} 37. Qxh5+ {[%emt 0:00:30]} Nh6 {[%emt 0:00:00]} 38. Rd6 {[%emt 0:00:30]} Qxd6 {[%emt 0:00:20]} 39. Qe8+ {[%emt 0:00:30]} Rxe8 {[%emt 0:00:30]} 40. dxe8=Q+ {[%emt 0:00:00]} Kh7 {[%emt 0:00:00]} 41. Qg6+ {[%emt 0:00:00]} Kg8 {[%emt 0:00:12]} 42. Qe8+ {[%emt 0:00:30]} Qf8 {[%emt 0:00:29]} 43. Qe6+ {[%emt 0:00:00]} Qf7 {[%emt 0:02:13]} 44. Qc8+ {[%emt 0:00:00]} Kh7 {[%emt 0:00:30]} 45. Qxc5 {[%emt 0:00:30]} Nxf5 {[%emt 0:00:00]} 46. Qxa7 {[%emt 0:00:00]} Qxc4 {[%emt 0:00:04]} 47. Qxb7 {[%emt 0:00:00]} Qxa4 {[%emt 0:00:59]} 48. Qb1 {[%emt 0:00:30]} g6 {[%emt 0:00:00]} 49. Qb7+ {[%emt 0:00:30]} Ng7 {[%emt 0:00:01]} 50. Ne4 {[%emt 0:00:00]} Qa1+ {[%emt 0:01:28]} 51. Kg2 {[%emt 0:00:00]} Qa2+ {[%emt 0:00:30]} 52. Kg1 {[%emt 0:00:30]} Qa1+ {[%emt 0:00:30]} 53. Kg2 {[%emt 0:00:30]} Qa2+ {[%emt 0:00:30]} 54. Kg1 {[%emt 0:00:00]} Qe6 {[%emt 0:00:00]} 55. Qc7 {[%emt 0:00:00]} Qf5 {[%emt 0:00:46]} 1/2-1/2

[Event "Turkish Women-ch Arzum 2022"]
[Site "Ayvalik"]
[Date "2022.03.09"]
[Round "7.4"]
[White "Acarbay, Algi"]
[Black "Hereklioglu, Sude"]
[Result "1-0"]
[ECO "B28"]
[WhiteElo "1992"]
[BlackElo "1924"]
[Annotator "ChessBase"]
[PlyCount "45"]
[EventDate "2022.03.04"]
[EventType "swiss"]
[EventCountry "TUR"]
[SourceTitle "playchess.com"]
[Source "ChessBase"]
[SourceQuality "1"]
[TimeControl "5400+30"]

1. e4 {[%emt 0:02:00]} c5 {[%emt 0:01:00]} 2. Nf3 {[%emt 0:00:30]} a6 {[%emt 0:00:30]} 3. c3 {[%emt 0:00:30]} d5 {[%emt 0:00:30]} 4. exd5 {[%emt 0:00:30]} Qxd5 {[%emt 0:00:30]} 5. d4 {[%emt 0:00:30]} cxd4 {[%emt 0:01:30]} 6. cxd4 {[%emt 0:01:30]} Nf6 {[%emt 0:03:30]} 7. Nc3 {[%emt 0:00:30]} Qd6 {[%emt 0:01:30]} 8. Bc4 {[%emt 0:08:30]} b5 {[%emt 0:05:30]} 9. Bb3 {[%emt 0:00:30]} Bb7 {[%emt 0:01:30]} 10. O-O {[%emt 0:03:30]} e6 {[%emt 0:01:30]} 11. Bg5 {[%emt 0:18:30]} b4 {[%emt 0:18:30]} 12. Na4 {[%emt 0:04:30]} Nbd7 {[%emt 0:14:30]} 13. Re1 {[%emt 0:14:30]} Nd5 {[%emt 0:12:30]} 14. Bh4 {[%emt 0:10:30]} h5 {[%emt 0:10:30]} 15. Nc5 {[%emt 0:04:30]} Bc6 {[%emt 0:04:54]} 16. Rc1 {[%emt 0:08:54]} g5 {[%emt 0:08:53]} 17. Bg3 {[%emt 0:05:38]} Nf4 {[%emt 0:01:43]} 18. Bxf4 {[%emt 0:06:08]} Qxf4 {[%emt 0:00:43]} 19. Nxe6 {[%emt 0:00:30]} fxe6 {[%emt 0:00:00]} 20. Rxe6+ {[%emt 0:00:00]} Kd8 {[%emt 0:00:29]} 21. Rexc6 {[%emt 0:01:04]} Bg7 {[%emt 0:04:08]} 22. g3 {[%emt 0:01:26]} Qe4 {[%emt 0:00:44]} 23. Nxg5 {[%emt 0:01:18]} 1-0

[Event "Turkish Women-ch Arzum 2022"]
[Site "Ayvalik"]
[Date "2022.03.09"]
[Round "7.8"]
[White "Sahin, Hayrun Nisa"]
[Black "Incecik, Seyma Zeynep"]
[Result "1/2-1/2"]
[ECO "A08"]
[WhiteElo "2014"]
[BlackElo "1777"]
[Annotator "ChessBase"]
[PlyCount "85"]
[EventDate "2022.03.04"]
[EventType "swiss"]
[EventCountry "TUR"]
[SourceTitle "playchess.com"]
[Source "ChessBase"]
[SourceQuality "1"]
[TimeControl "5400+30"]

1. g3 {[%emt 0:06:00]} d5 {[%emt 0:01:00]} 2. Bg2 {[%emt 0:00:30]} Nf6 {[%emt 0:00:30]} 3. Nf3 {[%emt 0:00:00]} c5 {[%emt 0:01:30]} 4. d3 {[%emt 0:00:00]} Nc6 {[%emt 0:00:30]} 5. O-O {[%emt 0:00:30]} Bg4 {[%emt 0:01:30]} 6. c3 {[%emt 0:00:00]} e6 {[%emt 0:00:30]} 7. Nbd2 {[%emt 0:00:00]} h6 {[%emt 0:01:30]} 8. Qc2 {[%emt 0:00:30]} Rc8 {[%emt 0:00:30]} 9. e4 {[%emt 0:01:30]} Be7 {[%emt 0:01:30]} 10. Re1 {[%emt 0:03:30]} O-O {[%emt 0:01:30]} 11. Nf1 {[%emt 0:03:30]} d4 {[%emt 0:06:30]} 12. h3 {[%emt 0:02:30]} Bxf3 {[%emt 0:03:30]} 13. Bxf3 {[%emt 0:00:00]} Ne5 {[%emt 0:01:30]} 14. Be2 {[%emt 0:07:00]} c4 {[%emt 0:02:30]} 15. Rd1 {[%emt 0:18:30]} cxd3 {[%emt 0:07:30]} 16. Bxd3 {[%emt 0:00:30]} Qa5 {[%emt 0:07:30]} 17. Bd2 {[%emt 0:22:30]} Nf3+ {[%emt 0:02:30]} 18. Kg2 {[%emt 0:00:30]} Nxd2 {[%emt 0:00:30]} 19. Nxd2 {[%emt 0:01:30]} dxc3 {[%emt 0:01:30]} 20. Nc4 {[%emt 0:01:30]} cxb2 {[%emt 0:06:30]} 21. Qxb2 {[%emt 0:06:30]} Qc7 {[%emt 0:02:30]} 22. Rac1 {[%emt 0:00:30]} Qb8 {[%emt 0:01:30]} 23. Rb1 {[%emt 0:01:30]} b6 {[%emt 0:01:30]} 24. e5 {[%emt 0:06:33]} Nd5 {[%emt 0:03:30]} 25. Rbc1 {[%emt 0:02:16]} b5 {[%emt 0:05:30]} 26. Na5 {[%emt 0:01:36]} a6 {[%emt 0:02:30]} 27. Qd4 {[%emt 0:03:02]} Qb6 {[%emt 0:13:30]} 28. Qxb6 {[%emt 0:06:40]} Nxb6 {[%emt 0:00:30]} 29. Nc6 {[%emt 0:00:00]} Ba3 {[%emt 0:00:30]} 30. Rc3 {[%emt 0:00:48]} Nc4 {[%emt 0:07:23]} 31. Be4 {[%emt 0:05:14]} Kh8 {[%emt 0:05:52]} 32. f4 {[%emt 0:00:28]} Bc5 {[%emt 0:01:34]} 33. Rd7 {[%emt 0:00:31]} Bb6 {[%emt 0:00:32]} 34. a4 {[%emt 0:00:41]} Na5 {[%emt 0:00:41]} 35. axb5 {[%emt 0:00:48]} axb5 {[%emt 0:00:30]} 36. Rc2 {[%emt 0:00:00]} Nxc6 {[%emt 0:01:10]} 37. Rxc6 {[%emt 0:00:00]} Rxc6 {[%emt 0:00:26]} 38. Bxc6 {[%emt 0:00:13]} b4 {[%emt 0:00:00]} 39. Rb7 {[%emt 0:00:00]} Bc5 {[%emt 0:00:03]} 40. Rb5 {[%emt 0:00:49]} Be7 {[%emt 0:00:11]} 41. Rb7 {[%emt 0:00:00]} Bc5 {[%emt 0:01:19]} 42. Rb5 {[%emt 0:00:00]} Be7 {[%emt 0:00:23]} 43. Rb7 {[%emt 0:00:00]} 1/2-1/2

[Event "Turkish Women-ch Arzum 2022"]
[Site "Ayvalik"]
[Date "2022.03.09"]
[Round "7.9"]
[White "Karatiken, Seray"]
[Black "Can, Isil"]
[Result "0-1"]
[ECO "E01"]
[WhiteElo "1717"]
[BlackElo "1875"]
[Annotator "NA"]
[PlyCount "60"]
[EventDate "2022.03.04"]
[EventType "swiss"]
[EventCountry "TUR"]
[SourceTitle "playchess.com"]
[Source "ChessBase"]
[SourceQuality "1"]
[TimeControl "5400+30"]

{[%evp 8,57,20,-14,16,20,32767,24,27,18,19,9,40,-2,6,0,0,0,0,-40,-28,-22,-14,-51,32767,-18,0,32767,-12,-16,0,0,17,-6,-29,-31,-13,-38,-24,-45,-12,-33,-2,-54,-43,-254,32767,32767,32767,-631,-692,-1438]} 1. d4 {[%emt 0:01:00]} d5 {[%emt 0:02:00]} 2. Nf3 {[%emt 0:00:30]} Nf6 {[%emt 0:01:30]} 3. c4 {[%emt 0:00:30]} e6 {[%emt 0:00:00]} 4. Qc2 {[%emt 0:00:30]} Nbd7 {[%emt 0:00:00]} 5. g3 {[%emt 0:00:30]} c6 {[%emt 0:01:30]} 6. Bg2 {[%emt 0:01:30]} Bd6 {[%emt 0:03:30]} 7. O-O {[%emt 0:03:30]} O-O {[%emt 0:00:00]} 8. b3 {[%emt 0:09:30]} e5 {[%emt 0:13:00]} 9. dxe5 {[%emt 0:06:30]} Nxe5 {[%emt 0:00:00]} 10. Bb2 {[%emt 0:03:30]} Nxf3+ {[%emt 0:04:00]} 11. Bxf3 {[%emt 0:00:30]} dxc4 {[%emt 0:00:00]} 12. bxc4 {[%emt 0:11:30]} Qe7 {[%emt 0:00:00]} 13. a4 {[%emt 0:11:30]} (13. Rd1 $11) 13... a5 {[%emt 0:03:30]} 14. Nd2 {[%emt 0:01:30]} Re8 {[%emt 0:03:30]} 15. Bd4 {[%emt 0:06:30]} (15. Rfd1 $11) 15... Be5 {[%emt 0:03:30]} 16. Bxe5 {[%emt 0:09:30]} Qxe5 {[%emt 0:00:30]} 17. Ra3 {[%emt 0:03:30]} Bf5 {[%emt 0:03:30]} 18. Qc3 {[%emt 0:03:30]} Qc5 {[%emt 0:09:30]} 19. Rb3 {[%emt 0:00:30]} Rab8 {[%emt 0:00:30]} 20. Qb2 {[%emt 0:01:30]} (20. Rb2 $1 $14) 20... b6 {[%emt 0:00:30]} 21. Qa3 {[%emt 0:01:30]} Qd4 {[%emt 0:02:30]} 22. Qb2 {[%emt 0:00:00]} Red8 {[%emt 0:01:30]} 23. Nb1 {[%emt 0:04:17]} Qxc4 {[%emt 0:04:30]} 24. Rxb6 {[%emt 0:00:37]} Nd7 {[%emt 0:00:30]} 25. Rb7 {[%emt 0:12:38]} Qxa4 {[%emt 0:03:30]} 26. Rc1 $2 {[%emt 0:03:07]} (26. Nc3 $15 Rxb7 27. Qxb7) 26... Rxb7 {[%emt 0:04:30]} 27. Qxb7 {[%emt 0:00:02]} Ne5 {[%emt 0:00:30]} 28. Bxc6 $2 {[%emt 0:01:40]} (28. Qe7 $17 Qd4 29. Nc3) 28... Nxc6 {[%emt 0:01:30]} 29. Qxc6 $19 {[%emt 0:02:46]} Qxc6 {[%emt 0:00:30]} 30. Rxc6 {[%emt 0:00:30]} Rd1+ {[%emt 0:00:00]} 0-1

[Event "Turkish Women-ch Arzum 2022"]
[Site "Ayvalik"]
[Date "2022.03.09"]
[Round "7.10"]
[White "Catal, Uktenur"]
[Black "Kipik, Feyza"]
[Result "1-0"]
[ECO "A32"]
[WhiteElo "1832"]
[BlackElo "1603"]
[Annotator "NA"]
[PlyCount "89"]
[EventDate "2022.03.04"]
[EventType "swiss"]
[EventCountry "TUR"]
[SourceTitle "playchess.com"]
[Source "ChessBase"]
[SourceQuality "1"]
[TimeControl "5400+30"]

{[%evp 8,88,22,12,32767,31,43,11,16,20,20,11,47,31,64,78,98,104,134,134,133,129,150,125,187,116,155,159,32767,211,199,208,215,32767,141,98,383,397,406,446,583,608,600,629,664,672,720,723,758,32767,32767,782,742,684,32767,773,32767,32767,32767,32767,32767,32767,32767,32767,32767,32767,32767,32767,1125,1323,32767,32767,32767,32767,32767,32767,32767,32767,32767,32767,4069,5539,29990]} 1. Nf3 {[%emt 0:01:00]} c5 {[%emt 0:03:00]} 2. c4 {[%emt 0:00:30]} Nc6 {[%emt 0:00:30]} 3. d4 {[%emt 0:00:00]} cxd4 {[%emt 0:00:30]} 4. Nxd4 {[%emt 0:00:00]} Nf6 {[%emt 0:01:30]} 5. g3 {[%emt 0:00:00]} e6 {[%emt 0:03:30]} 6. Bg2 {[%emt 0:13:00]} Bb4+ {[%emt 0:18:30]} 7. Bd2 {[%emt 0:04:30]} Qb6 {[%emt 0:03:30] was the old line (7...Be7).} 8. Nb3 {[%emt 0:01:30]} Ne5 {[%emt 0:08:30]} 9. Qc2 {[%emt 0:04:30]} d6 {[%emt 0:05:30]} 10. O-O {[%emt 0:00:30] [#]} Bd7 $146 {[%emt 0:00:30] [#]} ({Predecessor:} 10... Bxd2 $11 {should be considered.} 11. N1xd2 O-O 12. Rac1 Qc7 13. c5 d5 14. e4 dxe4 15. Nxe4 Nxe4 16. Qxe4 Rb8 {½-½ (30) Gelfand,B (2736)-Korotylev,A (2600) Moscow 2007}) 11. Be3 $1 {[%emt 0:02:30]} Qc7 {[%emt 0:02:30]} 12. a3 {[%emt 0:01:30]} Ba5 {[%emt 0:01:30]} 13. Nxa5 {[%emt 0:00:30]} Qxa5 {[%emt 0:00:00]} 14. Bxb7 {[%emt 0:03:30]} Rb8 {[%emt 0:01:00]} 15. Bg2 {[%emt 0:00:30]} Ba4 {[%emt 0:02:30]} (15... Qc7 $16) 16. Qc1 {[%emt 0:03:30]} ({White should play} 16. Qc3 $18 Qxc3 17. Nxc3) 16... O-O {[%emt 0:00:30]} 17. b4 {[%emt 0:01:30]} Qa6 {[%emt 0:02:30] [#]} 18. b5 $1 {[%emt 0:06:30]} Qa5 {[%emt 0:01:30]} 19. Qc3 {[%emt 0:01:30]} Qc7 {[%emt 0:05:30]} 20. Rc1 {[%emt 0:00:30]} Neg4 {[%emt 0:05:30]} 21. Bd2 {[%emt 0:13:30]} ({Better is} 21. Nd2 $18) 21... a6 $2 {[%emt 0:01:30]} (21... Qc5 $16) 22. h3 {[%emt 0:03:30]} Ne5 {[%emt 0:01:30]} 23. Qb4 {[%emt 0:00:30]} axb5 {[%emt 0:07:30]} 24. cxb5 {[%emt 0:00:30]} Qd7 {[%emt 0:02:30]} 25. Qxa4 {[%emt 0:00:30]} Nd5 {[%emt 0:00:30]} 26. Nc3 {[%emt 0:01:30]} Nb6 {[%emt 0:01:30]} 27. Qd4 {[%emt 0:00:30]} Nec4 {[%emt 0:01:13]} 28. Bc6 {[%emt 0:02:30]} e5 {[%emt 0:00:56]} 29. Qh4 {[%emt 0:00:00]} Qe6 {[%emt 0:01:54]} 30. Be1 {[%emt 0:01:00]} f5 {[%emt 0:01:13] [#]} 31. Bd5 $1 {[%emt 0:01:30]} Nxd5 {[%emt 0:00:30]} 32. Qxc4 {[%emt 0:00:00]} Nf4 {[%emt 0:00:37]} 33. Qxe6+ {[%emt 0:00:00]} Nxe6 {[%emt 0:00:30]} 34. e3 {[%emt 0:00:30]} f4 {[%emt 0:00:48]} 35. a4 {[%emt 0:00:30]} fxe3 {[%emt 0:01:01]} 36. fxe3 {[%emt 0:02:30]} Rf3 {[%emt 0:00:10]} 37. Nd5 {[%emt 0:02:30]} Rbf8 {[%emt 0:01:32]} 38. Kg2 {[%emt 0:00:00]} Nc5 {[%emt 0:00:47]} 39. Rxc5 {[%emt 0:01:00]} dxc5 {[%emt 0:00:06]} 40. a5 {[%emt 0:00:00]} R3f7 {[%emt 0:01:23]} 41. a6 {[%emt 0:00:00]} Rd8 {[%emt 0:00:24]} 42. a7 {[%emt 0:01:30]} Ra8 {[%emt 0:01:06]} 43. b6 {[%emt 0:00:00]} Rd7 {[%emt 0:00:15]} 44. Nc7 {[%emt 0:00:00]} Rxc7 {[%emt 0:00:20]} 45. bxc7 {[%emt 0:00:00]} 1-0

[Event "Turkish Women-ch Arzum 2022"]
[Site "Ayvalik"]
[Date "2022.03.09"]
[Round "7.11"]
[White "Can, Isil"]
[Black "Zengin, Ovgu"]
[Result "1-0"]
[ECO "B43"]
[WhiteElo "1875"]
[BlackElo "1475"]
[Annotator "NA RC"]
[PlyCount "70"]
[EventDate "2022.03.04"]
[EventType "swiss"]
[EventCountry "TUR"]
[SourceTitle "playchess.com"]
[Source "ChessBase"]
[SourceQuality "1"]
[TimeControl "5400+30"]

1. e4 c5 2. Nf3 e6 3. d4 cxd4 4. Nxd4 a6 5. Nc3 Qc7 6. a3 Nf6 7. Be3 b5 8. Bd3 Bb7 9. f3 {[%emt 0:04:00]} d5 {[%emt 0:08:00]} 10. exd5 {[%emt 0:02:30]} Nxd5 {[%emt 0:02:30]} 11. Nxd5 {[%emt 0:00:30]} Bxd5 {[%emt 0:01:30]} 12. O-O {[%emt 0:00:30]} Bd6 {[%emt 0:00:30]} 13. h3 {[%emt 0:00:30]} Nd7 {[%emt 0:02:30]} 14. Kh1 {[%emt 0:04:30]} Nf6 {[%emt 0:01:30]} 15. Bxb5+ {[%emt 0:08:30]} Ke7 {[%emt 0:11:30]} 16. Bd3 {[%emt 0:04:30]} Nh5 {[%emt 0:04:30]} 17. Ne2 {[%emt 0:01:30]} Be5 {[%emt 0:08:30]} 18. c4 {[%emt 0:06:30]} Bb7 {[%emt 0:04:30]} 19. Qc2 {[%emt 0:03:30]} Rhb8 {[%emt 0:05:30]} 20. Rab1 {[%emt 0:01:30]} Nf6 {[%emt 0:10:30]} 21. f4 {[%emt 0:15:30]} Qc6 {[%emt 0:01:30]} 22. Rg1 {[%emt 0:00:30]} Bc7 {[%emt 0:02:30]} 23. Nd4 {[%emt 0:00:30]} Qd7 {[%emt 0:01:30]} 24. Rgf1 {[%emt 0:02:30]} g6 {[%emt 0:09:30]} 25. Rbd1 {[%emt 0:09:30]} Qc8 {[%emt 0:03:30]} 26. f5 {[%emt 0:04:30]} e5 {[%emt 0:03:30]} 27. Bg5 {[%emt 0:03:30]} exd4 {[%emt 0:07:10]} 28. Rde1+ {[%emt 0:01:30]} Kf8 {[%emt 0:01:11]} 29. Bxf6 {[%emt 0:02:30]} Qd7 {[%emt 0:01:35]} 30. Qd2 {[%emt 0:00:30]} Kg8 {[%emt 0:01:26]} 31. Qh6 {[%emt 0:01:30]} Bxg2+ {[%emt 0:00:47]} 32. Kg1 {[%emt 0:00:30]} Bh2+ {[%emt 0:00:59]} 33. Kxh2 {[%emt 0:00:00]} Qd6+ {[%emt 0:00:28]} 34. Be5 {[%emt 0:00:00]} Qf8 {[%emt 0:01:04]} 35. Qxf8+ {[%emt 0:00:30]} Kxf8 {[%emt 0:00:54]} 1-0

[Event "Turkish Women-ch Arzum 2022"]
[Site "Ayvalik"]
[Date "2022.03.09"]
[Round "7.11"]
[White "Salt, Ilayda"]
[Black "Buyuk, Ecrin Efsa"]
[Result "0-1"]
[ECO "D11"]
[WhiteElo "1594"]
[BlackElo "1565"]
[Annotator "NA"]
[PlyCount "112"]
[EventDate "2022.03.04"]
[EventType "swiss"]
[EventCountry "TUR"]
[SourceTitle "playchess.com"]
[Source "ChessBase"]
[SourceQuality "1"]
[TimeControl "5400+30"]

1. d4 {[%emt 0:01:00]} d5 {[%emt 0:01:00]} 2. c4 {[%emt 0:00:30]} c6 {[%emt 0:00:30]} 3. Nf3 {[%emt 0:00:30]} Nf6 {[%emt 0:00:30]} 4. g3 {[%emt 0:00:30]} Bf5 {[%emt 0:00:00]} 5. Bg2 {[%emt 0:00:00]} e6 {[%emt 0:00:00]} 6. O-O {[%emt 0:00:00]} Nbd7 {[%emt 0:00:30]} 7. Nbd2 {[%emt 0:02:30]} Be7 {[%emt 0:02:30]} 8. b3 {[%emt 0:00:00]} O-O {[%emt 0:00:30]} 9. Bb2 {[%emt 0:00:00]} Ne4 {[%emt 0:03:30]} 10. Re1 {[%emt 0:07:30]} Ndf6 {[%emt 0:02:30]} 11. a3 {[%emt 0:02:30]} dxc4 {[%emt 0:03:30]} 12. bxc4 {[%emt 0:02:30]} c5 {[%emt 0:04:30]} 13. Nxe4 {[%emt 0:01:30]} Nxe4 {[%emt 0:06:30]} 14. d5 {[%emt 0:03:30]} exd5 {[%emt 0:01:30]} 15. cxd5 {[%emt 0:00:30]} c4 {[%emt 0:04:30]} 16. Rc1 {[%emt 0:11:30]} c3 {[%emt 0:05:30]} 17. Bxc3 {[%emt 0:16:30]} Bxa3 {[%emt 0:00:00]} 18. Rc2 {[%emt 0:03:30]} Nxc3 {[%emt 0:01:00]} 19. Rxc3 {[%emt 0:03:30]} Bb4 {[%emt 0:00:00]} 20. Rb3 {[%emt 0:01:30]} Bxe1 {[%emt 0:00:00]} 21. Nxe1 {[%emt 0:00:00]} Qd7 {[%emt 0:02:30]} 22. d6 {[%emt 0:01:00]} Rab8 {[%emt 0:00:30]} 23. e4 {[%emt 0:01:30]} Be6 {[%emt 0:00:30]} 24. Ra3 {[%emt 0:03:30]} b5 {[%emt 0:01:30]} 25. Qd4 {[%emt 0:01:30]} Rb6 {[%emt 0:00:30]} 26. e5 {[%emt 0:01:30]} b4 {[%emt 0:00:00]} 27. Ra1 {[%emt 0:00:30]} b3 {[%emt 0:00:00]} 28. Nd3 {[%emt 0:00:30]} Bf5 {[%emt 0:02:30]} 29. Nc5 {[%emt 0:01:30]} Qb5 {[%emt 0:00:30]} 30. Bf1 {[%emt 0:08:30]} Qb4 {[%emt 0:01:30]} 31. Qxb4 {[%emt 0:01:30]} Rxb4 {[%emt 0:00:30]} 32. Bd3 {[%emt 0:10:35]} b2 {[%emt 0:02:30]} 33. Rb1 {[%emt 0:01:09]} Be6 {[%emt 0:08:30]} 34. Nxe6 {[%emt 0:02:09]} fxe6 {[%emt 0:00:30]} 35. f4 {[%emt 0:04:03]} g6 {[%emt 0:00:30]} 36. Kf2 {[%emt 0:01:30]} a5 {[%emt 0:00:30]} 37. Rd1 {[%emt 0:01:37]} Rfb8 {[%emt 0:04:30]} 38. Bb1 {[%emt 0:00:15]} Kf7 {[%emt 0:00:00]} 39. Ke3 {[%emt 0:01:11]} a4 {[%emt 0:01:00]} 40. g4 {[%emt 0:00:38]} a3 {[%emt 0:00:30]} 41. f5 {[%emt 0:00:30]} gxf5 {[%emt 0:05:30]} 42. gxf5 {[%emt 0:00:02]} exf5 {[%emt 0:01:30]} 43. Ba2+ {[%emt 0:00:25]} Ke8 {[%emt 0:01:30]} 44. Bb1 {[%emt 0:06:37]} a2 {[%emt 0:02:30]} 45. Bxa2 {[%emt 0:00:01]} b1=Q {[%emt 0:00:30]} 46. Bxb1 {[%emt 0:00:52]} Rxb1 {[%emt 0:00:00]} 47. Rd5 {[%emt 0:00:00]} Kd7 {[%emt 0:01:00]} 48. Kf4 {[%emt 0:00:38]} Ke6 {[%emt 0:00:30]} 49. Rd2 {[%emt 0:00:49]} R1b4+ {[%emt 0:00:30]} 50. Kg5 {[%emt 0:00:08]} Kxe5 {[%emt 0:00:30]} 51. h4 {[%emt 0:00:24]} Rg8+ {[%emt 0:01:30]} 52. Kh5 {[%emt 0:00:20]} Rd8 {[%emt 0:00:00]} 53. Rg2 {[%emt 0:00:30]} Rxd6 {[%emt 0:00:00]} 54. Rg7 {[%emt 0:00:43]} Rdd4 {[%emt 0:00:30]} 55. Re7+ {[%emt 0:01:44]} Kf6 {[%emt 0:00:30]} 56. Rf7+ {[%emt 0:00:15]} Ke5 {[%emt 0:00:30]} 0-1